Cogmind - Beta 15 @@@ ROGUE MODE // 2025.05.11 @ 18:55:56 Player: Willow Result: Destroyed by ZW-ZAX(R) with Subdweller Laser Performance ------------- Evolutions (0) 0 Regions Visited (2) 400 Robots Destroyed (23) 115 Value Destroyed (375) 375 Prototype IDs (3) 60 Alien Tech Used (0) 0 Bonus (0) 0 TOTAL SCORE: 950 Bonus ------- None Cogmind --------- Core Integrity 0/250 Matter 219/300 Energy 92/100 System Corruption 0% Temperature Cool (15) Movement Treading (160) Location -10/Subcaves Parts ------- > --- POWER (1) -------- (None) > --- PROPULSION (2) --- Light Treads Improved Treads > --- UTILITY (2) ------ Large Storage Unit Structural Scanner > --- WEAPON (2) ------- Autogun Autogun > --- INVENTORY (15) --- Improved Treads Improved Treads Improved Treads Improved Heat Sink Huge Storage Unit Small Matter Pod (50) Improved Targeting Computer Improved Targeting Computer Makeshift Hacking Suite Salvaging Laser Salvaging Laser Autogun Autogun Datajack Peak State ------------ > --- POWER ------------ Light Ion Engine > --- PROPULSION ------- Light Treads Light Treads > --- UTILITY ---------- Large Storage Unit Hacking Suite > --- WEAPON ----------- Autogun Autogun > --- INVENTORY -------- Ion Engine Improved Treads Improved Treads Improved Treads Improved Treads Huge Storage Unit Small Matter Pod Improved Targeting Computer Improved Targeting Computer Salvaging Laser Autogun Autogun Datajack [Rating: 13] Favorites ----------- Power Light Ion Engine Engine Light Ion Engine Propulsion Light Treads Treads Light Treads Utility Large Storage Unit Device Structural Scanner Storage Large Storage Unit Processor Improved Targeting Computer Hackware Hacking Suite Weapon Autogun Energy Gun Salvaging Laser Ballistic Gun Autogun Build | -11 -10 -10 ------- Run | Yrd Mat Sub Slots Evolved . | . . . Power . | . . . Propulsion . | . . . Utility . | . . . Weapon . | . . . Parts Attached 22 | 7 13 2 Power 2 | 1 . 1 Engine 2 | 1 . 1 Core . | . . . Reactor . | . . . Propulsion 5 | 2 2 1 Treads 5 | 2 2 1 Leg . | . . . Wheel . | . . . Hover . | . . . Flight . | . . . Utility 9 | 2 7 . Device 3 | 1 2 . Storage 3 | 1 2 . Processor 2 | . 2 . Hackware 1 | . 1 . Protection . | . . . Artifact . | . . . Weapon 6 | 2 4 . Energy Gun 2 | . 2 . Energy Cannon . | . . . Ballistic Gun 4 | 2 2 . Ballistic Cannon . | . . . Launcher . | . . . Special Weapon . | . . . Impact Weapon . | . . . Slashing Weapon . | . . . Piercing Weapon . | . . . Special Melee Weapon . | . . . Unidentified Prototypes . | . . . Parts Lost 2 | . . 2 Power 1 | . . 1 Propulsion 1 | . . 1 Utility . | . . . Weapon . | . . . Highest Loss Streak 1 | . . 1 To Critical Strikes . | . . . Average Backups 10 | 1 10 14 Power . | . 1 . Propulsion 2 | . 3 4 Utility 3 | . 2 5 Weapon 3 | . 3 4 Tool/Special . | . . . Unused Backups 14 | . 2 12 Power . | . . . Propulsion 4 | . 1 3 Utility 6 | . . 6 Weapon 3 | . 1 2 Tool/Special 1 | . . 1 Average Slot Usage (%) 98 | . 98 97 Engine 13 | . 14 12 Treads 27 | . 28 27 Device 7 | . 5 14 Storage 14 | . 14 14 Processor 2 | . 3 . Hackware 3 | . 4 . Energy Gun 9 | . 12 . Ballistic Gun 17 | . 15 28 Peak Build Rating 13 | 7 13 11 Average Rating 10 | 5 10 10 On Entrance 6 | . 7 11 Naked Turns . | . . . Heaviest Build 32 | 11 30 32 Greatest Support 40 | 40 40 40 Greatest Overweight (x) . | . . . Average Overweight (x) . | . . . Largest Inventory Capacity 15 | 8 15 15 Average Capacity 13 | 7 14 15 Most Carried 15 | 3 15 15 Average Carried 10 | 1 10 14 Final Capacity 15 | 8 15 15 Final Carried 14 | 3 14 14 Class Distribution -------------------- 96% | Mutant 3% | Scavenger-Mutant Dominant Class ---------------- Mutant | -10/Materials Mutant | -10/Subcaves Resources | -11 -10 -10 ----------- Run | Yrd Mat Sub Matter Collected 660 | 365 238 57 Remotely . | . . . Salvage Created 751 | 202 423 126 Parts 55 | 14 30 11 Haulers Intercepted 2 | . 2 . Recyclers Shooed 2 | 1 1 . Parts Field Recycled . | . . . Retrieved Matter . | . . . Parts Self-Destructed 6 | . . 6 Prevented . | . . . Kills | -11 -10 -10 ------- Run | Yrd Mat Sub Combat Hostiles Destroyed 10 | . 7 3 Guns 9 | . 6 3 Classes Destroyed 9 | 3 5 1 Worker 3 | 2 1 . Builder 2 | . 2 . Tunneler 3 | 3 . . Hauler 2 | . 2 . Recycler 1 | 1 . . Operator 2 | . 2 . Swarmer 3 | . 3 . Grunt 4 | . 4 . Subdweller 3 | . . 3 Best Kill Streak 3 | 3 3 1 Combat Bots Only 3 | . 3 1 Max Kills in Single Turn 1 | 1 1 1 Gunslinging . | . . . Exploded . | . . . Melee . | . . . Uniques/NPCs Destroyed . | . . . Combat | -11 -10 -10 -------- Run | Yrd Mat Sub Hostile Shots Fired 52 | . 27 25 Missed 12 | . 5 7 Hits 40 | . 22 18 Projectile 40 | . 22 18 Critical Strikes 1 | . 1 . Damage Taken 738 | . 247 491 Core 256 | . 42 214 Absorbed by Shields . | . . . Core Remaining (%) 100 | 100 . . Volleys Fired 98 | 25 57 16 Largest 2 | 2 2 2 Hottest 60 | 40 60 46 Shots Fired 181 | 50 99 32 Gun 181 | 50 99 32 Cannon . | . . . Launcher . | . . . Special . | . . . Kinetic 95 | 50 13 32 Thermal 86 | . 86 . Explosive . | . . . Electromagnetic . | . . . Robot Hit Streak 12 | 7 12 9 Robot Miss Streak 5 | 2 5 3 Penetration Max . | . . . Secondary Targets 1 | . 1 . Max Gunslinging Chain 1 | . 1 . Shots Hit Robots 120 | 34 61 25 Core Hits 47 | 13 27 7 Critical Kills . | . . . Critical Parts Destroyed . | . . . Critical Strikes . | . . . Melee Attacks . | . . . Impact . | . . . Slashing . | . . . Piercing . | . . . Sneak Attacks . | . . . Combat Hostiles . | . . . Follow-up Attacks . | . . . Damage Inflicted 1278 | 275 608 395 Guns 1260 | 270 595 395 Cannons . | . . . Explosions . | . . . Melee . | . . . Ramming 18 | 5 13 . Kinetic 703 | 270 38 395 Thermal 557 | . 557 . Explosive . | . . . Electromagnetic . | . . . Impact . | . . . Slashing . | . . . Piercing . | . . . Highest Corruption . | . . . Average Corruption . | . . . Corruption Purged . | . . . Corruption Blocked . | . . . Overload Shots . | . . . Overflow Damage . | . . . Projectiles . | . . . Explosions . | . . . Melee . | . . . Knockbacks 1 | . 1 . Impact 1 | . 1 . Kinetic . | . . . Secondary . | . . . Self-Inflicted Damage . | . . . Shots . | . . . Rammed 4 | 1 3 . Targets Rammed 5 | 1 4 . Kicked . | . . . Crushed 1 | . 1 . Highest Temperature 192 | . 192 . Average Temperature 50 | . 50 . Received Heat Transfer 216 | . 114 102 Siege Activations . | . . . Martial Activations . | . . . Shielding Activations . | . . . Robots Disrupted . | . . . Combat Hostiles . | . . . Robots Corrupted . | . . . Combat Hostiles . | . . . Parts Fried . | . . . Impact Corruptions . | . . . Robots Melted 1 | . 1 . Combat Hostiles 1 | . 1 . Parts Melted 4 | . 4 . Heat Transferred 1525 | . 1525 . Parts Sabotaged . | . . . Parts Stolen . | . . . Parts Stripped . | . . . Power Chain Reactions . | . . . Alert | -11 -10 -10 ------- Run | Yrd Mat Sub Maximum Alert Level . | . . . Low Security (%) 100 | 100 100 . Level 1 . | . . . Level 2 . | . . . Level 3 . | . . . Level 4 . | . . . Level 5 . | . . . High Security . | . . . Max Security . | . . . Peak Influence 70 | 10 70 . Initial . | . . . Average 7 | 1 8 . Influence Increases 313 | 30 283 . Destroy 0b10 Robot/C 140 | . 140 . Destroy 0b10 Robot/NC 65 | 30 35 . Destroy Leader 44 | . 44 . Successful Hack 19 | . 19 . Select Force Hacks 30 | . 30 . Lose Combat Pursuer 15 | . 15 . Influence Decreases 313 | 30 283 . Time Decay 295 | 30 265 . Purge Threat 18 | . 18 . Squads Dispatched 3 | . 3 . Investigation 1 | . 1 . Extermination . | . . . Reinforcement 2 | . 2 . Assault . | . . . Garrison . | . . . Intercept . | . . . Searches Triggered . | . . . Construction Impeded . | . . . Haulers Reinforced . | . . . Active Scanning Responses . | . . . Cargo Convoy Interrupts . | . . . Stealth | -11 -10 -10 --------- Run | Yrd Mat Sub Distress Signals . | . . . Communications Jammed . | . . . Distress Signals . | . . . Times Spotted 26 | . 19 7 Peak Tracking Total 3 | . 3 3 Tactical Retreats 1 | . 1 . Traps | -11 -10 -10 ------- Run | Yrd Mat Sub Traps Triggered 3 | . 1 2 Indirectly . | . . . Trap Hack Attempts . | . . . Triggered . | . . . Disarmed . | . . . Reprogrammed . | . . . Reused . | . . . Traps Extracted . | . . . Installed . | . . . Triggered . | . . . Machines | -11 -10 -10 ---------- Run | Yrd Mat Sub Machines Disabled . | . . . Max in Single Turn . | . . . Machines Repaired . | . . . Machines Dismantled . | . . . Machines Sabotaged . | . . . Overloaded Fab Kills . | . . . Hacking | -11 -10 -10 --------- Run | Yrd Mat Sub Machines Accessed 6 | . 6 . Terminals 5 | . 5 . Fabricators . | . . . Repair Stations . | . . . Recycling Units 1 | . 1 . Scanalyzers . | . . . Garrison Access . | . . . Total Hacks 15 | . 15 . Successful 11 | . 11 . Failed 4 | . 4 . Catastrophic 1 | . 1 . Database Lockouts . | . . . Manual 9 | . 9 . Terminals 14 | . 14 . Fabricators . | . . . Repair Stations . | . . . Recycling Units 1 | . 1 . Scanalyzers . | . . . Garrison Access . | . . . Terminal Hacks 3 | . 3 . Robot Analysis 1 | . 1 . Prototype ID Bank 1 | . 1 . Unreport Threat 1 | . 1 . Fabricator Hacks . | . . . Repair Station Hacks . | . . . Recycling Unit Hacks . | . . . Scanalyzer . | . . . Garrison Access Hacks . | . . . Unauthorized Hacks 8 | . 8 . Terminals 7 | . 7 . Botnet 2 | . 2 . Skim 5 | . 5 . Fabricators . | . . . Repair Stations . | . . . Recycling Units 1 | . 1 . Tunnel 1 | . 1 . Scanalyzers . | . . . Garrison Access . | . . . Data Cores Recovered . | . . . Used . | . . . Hacking Detections 4 | . 4 . Full Trace Events . | . . . Feedback Events . | . . . Feedback Blocked . | . . . Robot Schematics Acquired . | . . . Robots Built . | . . . Authchips . | . . . Time . | . . . Total Robot Build Rating . | . . . Part Schematics Acquired . | . . . Parts Built . | . . . Authchips . | . . . Time . | . . . Total Part Build Rating . | . . . Parts Repaired . | . . . Time . | . . . Parts Recycled . | . . . Recycled Matter . | . . . Retrieved Matter . | . . . Retrieved Components . | . . . Parts Scanalyzed . | . . . Part Schematics Acquired . | . . . Parts Damaged . | . . . Bothacking | -11 -10 -10 ------------ Run | Yrd Mat Sub Used RIF Installer . | . . . Robots Hacked . | . . . Non-combat . | . . . Combat . | . . . Robot Hacks Applied . | . . . Relay Couplers Released . | . . . Fabnet Peak Effective % . | . . . Robots Rewired . | . . . Allies Hacked . | . . . Hacks Repelled . | . . . Allies | -11 -10 -10 -------- Run | Yrd Mat Sub Total Allies . | . . . Largest Group . | . . . Highest-Rated Group . | . . . Highest-Rated Ally . | . . . Total Orders . | . . . Ally Attacks . | . . . Total Damage . | . . . Kills . | . . . Allies Corrupted . | . . . Allies Melted . | . . . Intel | -11 -10 -10 ------- Run | Yrd Mat Sub Active Infowar (turns) 828 | 67 299 462 Structural 517 | . 55 462 Seismic 311 | 67 244 . Robot Analysis Total 1 | . 1 . Derelict Logs Recovered . | . . . Drone Launches . | . . . Drone Recoveries . | . . . Exploration | -11 -10 -10 ------------- Run | Yrd Mat Sub Turns Passed 2436 | 194 1780 462 Spaces Moved 1256 | 75 943 238 Core 5 | 5 . . Treads 1251 | 70 943 238 Legs . | . . . Wheels . | . . . Hover . | . . . Flight . | . . . Fastest Speed 50 | 50 160 160 Average Speed 159 | 152 160 160 Slowest Speed 160 | 160 160 160 Overloaded Moves . | . . . Propulsion Burnouts . | . . . Robots Hopped . | . . . Potential Cave-ins . | . . . Cave-ins Triggered . | . . . Exploration Rate (%) 40 | 7 96 18 Regions Visited 2 Branch Regions 1 Pre-discovered Areas 1 | . 1 . Known Exits Taken 1 | . 1 . Unknown Exits Taken 1 | 1 . . Scrap Searched . | . . . Spaces Dug . | . . . Terrain Destroyed . | . . . Melee . | . . . Projectile . | . . . AOE . | . . . Terrain Rammed . | . . . Walls Destroyed . | . . . Machines Disabled . | . . . Actions | -11 -10 -10 --------- Run | Yrd Mat Sub Total 1551 | 110 1149 292 Wait 126 | . 93 33 Move 1254 | 74 942 238 Hop . | . . . Pick Up 22 | 3 17 2 Fast Attach 14 | 7 7 . Attach 4 | . 3 1 Detach 3 | . 3 . Swap 11 | . 10 1 Drop 14 | . 13 1 Fire 98 | 25 57 16 Melee . | . . . Ram . | . . . Kick . | . . . Crush 5 | 1 4 . Escape Stasis . | . . . Rewire . | . . . Trap . | . . . Miscellaneous . | . . . Route ------- -11/Scrapyard -10/Materials (discovered 5 exits: [*Mat x3] / [*Min] / *Sub) -10/Subcaves (discovered 1 exit: [*Scr]) History --------- Turn | Location | Event 31 | -11/Scrapyard | Discovered new exit (range 15) 195 | -11/Scrapyard | Entered Materials 196 | -10/Materials | Met a group of wandering Federalists 273 | -10/Materials | Discovered new exit (range 10) 298 | -10/Materials | Discovered new exit (range 16) 334 | -10/Materials | Build established: Mutant 496 | -10/Materials | Discovered new exit (range 5) 824 | -10/Materials | Discovered new exit (range 15) 1557 | -10/Materials | Discovered new exit (range 8) 1679 | -10/Materials | Learned location of 1 exit from Recycling 1710 | -10/Materials | Learned 4 Recycling zone layouts 1729 | -10/Materials | Loaded intel: 8 terminal locations 1740 | -10/Materials | Learned location of 2 exits from Mines 1741 | -10/Materials | Learned 4 Subcaves zone layouts 1742 | -10/Materials | Learned Storage stockpile data 1746 | -10/Materials | Learned Storage emergency access door positions 1759 | -10/Materials | Learned Recycling recycling unit intel 1845 | -10/Materials | Identified exit to Subcaves 1975 | -10/Materials | Entered Subcaves 1976 | -10/Subcaves | Continued accompanying wandering Federalists (2) 1976 | -10/Subcaves | Approached by a straggling Scientist 2183 | -10/Subcaves | Shifting Twisted Machinery released Mak. Hacking Suite 2239 | -10/Subcaves | Wandering Federalist uncovered a shortcut to Scraptown 2241 | -10/Subcaves | Shifting Twisted Machinery released Flamer 2401 | -10/Subcaves | Core integrity fell below 50% 2429 | -10/Subcaves | Core integrity fell below 20% 2437 | -10/Subcaves | Destroyed by ZW-ZAX(R) with Subdweller Laser Last Messages --------------- 02249_ 4H-TDT(g) exits level. 02280_ Acquired Mak. Hacking Suite. 2P-KEA(c): "I think it's somewhere south of here" 02328_ Triggered Piercing Trap. 02328_ Spikes shoot up from the floor. 02328_ Critical hit (Impale). 2P-KEA(c): "We're getting close, I can feel it." 02350_ Triggered Piercing Trap. 02350_ Spikes shoot up from the floor. 02350_ Critical hit (Impale). 02359_ 2P-KEA(c) triggered Piercing Trap. 02359_ Spikes shoot up from the floor. 02359_ 2P-KEA(c) suffers critical hit (Impale). 02359_ 2P-KEA(c) destroyed. 02375_ Ion Engine destroyed. 02380_ RW-YE3(R) destroyed. 02389_ Acquired 47 matter. 02399_ GP-EAR(R) affixes Scrap Shield Fragment to Scrap Shield. 02429_ Lgt. Treads destroyed. 02430_ GP-EAR(R) destroyed. Map ----- +----------------------------------------------------+ | ????????????????????????????????????????????????## | | ????????????????????????????????????????????????## | | ????????????????????????????????????????????????## | | ????????????????????????????????????????????????## | | ????????????????????????????????????????????????## | | ????????????????????????????????????????????????## | | ???????????????????????????????????????????????### | | ??????????????????????????????????????????????#### | | ???????????????????????????????????????????###### | | ???????????????????????????????????????????##### | | ???????????????????????????????????????????## | | ???????????????????????????????????????????## | | ???????????????????????????????????????????### | | ???????????????????????????????????????????### | | ????????????????????????????????????????????### | | ????????????????????????????????????????????### | | ???????????????????#####????#########???????### | | ???????????????????######??###########?????### | | ?????????????????? ## ####### ####????### | | ????????????????"""## ##### ####???## ## | | ????????????????""""" = ######## ## | | ??????????????"" "" %!## ####### ## | | ?????????????? ""#""# ## ##### ### | | ????????????????## "#" ### ###### #### | | ??????????????????? ## ### ##?#### ### | | ????????????????# #####@ ##??#### # # | | ???????????????### ? #### ######### ## | | ???????????????### ? ####| #### ### ### | | ??????????????### #####RR ;## ### # ## | | ?????????????#### #### & ### ## | | ?????????????### #!# ^ ### ## | | ?????????????## "&& "### ##### | | ????????????### """ && "##### ##### ##### # | | ????????????## """""#### "###### #?######## # | | ???????????? ? """###### ###?## ######### # | | ?????????????????" ""###### ###??# # ## ### # | | ??????????????? " " #### "#??# | | ??????????????? ## ? "##?## # ## | | ???????????????####? " "##?# # ## ## | | ????????????????###? """ ###?## ## | | ???????????????????? ##""" ###???####### # ## | | ????????????????????####### ###?????????### ###" | | ??????????????????????????## ##????????????####?#" | | ??????????????????????????#####?????????????????# | | ???????????????????????????###??????????????????# | | ????????????????????????????????????????????????#" | | ?????????????????????????????????????????????????? | | ?????????????????????????????????????????????????? | | ?????????????????????????????????????????????????? | | ?????????????????????????????????????????????????? | +----------------------------------------------------+ Best States ------------- Heat Dissipation 39 Energy Generation 10 Energy Capacity 250 Matter Stores 300 Matter Capacity 300 Sight Range 16 Terrain Scan Density 10 Evasion (%) 40 Targeting Accuracy 6 Recoil Reduction 2 Offensive Hacking 10 Item Schematics ----------------- None Robot Schematics ------------------ None Fabricated ------------ Nothing Repaired ---------- Nothing Alien Tech Used ----------------- None Achievements -------------- None Challenges ------------ None Game ------ Seed BottomlessForceBeam Manual? 0 Play Time 00:18:42 Cumulative 313.9 hours Start 2025.05.11 @ 16:03:05 End 2025.05.11 @ 18:55:56 Sessions 3 Manual Loads 0 Difficulty Rogue Special Mode None Game No. 129 Rogue 81 Adventurer 44 Explorer 4 Win Type - Total 10 Types 3/3/0/1/1/1/0/1/0/0 Lore% 70 Gallery% 70 Achievement% 73 Wizard Run 0 Options --------- Layout 0 ASCII 0 Keyboard 0 Movement Arrows Keybinds 0 Fullscreen 2 Font 18/SmallcapsGlow Map View 76x50 Zoom Use 0% Tactical HUD 1 Map Filters NONE Filters NONE Steam 1 RUN: 22187956-2e67-4199-8831-f1d5eab8691f